Cogmind - Beta 13 *** ADVENTURER MODE // 2024.05.11 @ 16:26:59 // Winter2019/RPGLIKE Player: XorOwl Result: Destroyed by UN-8ZT(R) with Subdweller Beam Cannon Performance ------------- Evolutions (0) 0 Regions Visited (3) 600 Robots Destroyed (28) 140 Value Destroyed (440) 440 Prototype IDs (0) 0 Alien Tech Used (0) 0 Bonus (0) 0 TOTAL SCORE: 1180 Bonus ------- None Cogmind --------- Core Integrity 0/650 Matter 189/300 Energy 310/310 System Corruption 2% Temperature Cool (9) Movement Rolling (90) Location -10/Subcaves Parts ------- > --- POWER (1) -------- Fission Core > --- PROPULSION (2) --- Wheel Compact Wheel > --- UTILITY (3) ------ Signal Interpreter Improved Terrain Scanner Seismic Detector > --- WEAPON (2) ------- Bore Cannon Grenade Launcher > --- INVENTORY (1) ---- High-capacity Matter Pod (42) Peak State ------------ > --- POWER ------------ Fission Core > --- PROPULSION ------- Wheel Compact Wheel > --- UTILITY ---------- Signal Interpreter Improved Terrain Scanner Seismic Detector > --- WEAPON ----------- Light Cannon Bore Cannon > --- INVENTORY -------- High-capacity Matter Pod [Rating: 18] Favorites ----------- Power Fission Core Engine Ion Engine Power Core Fission Core Propulsion Wheel Wheel Wheel Utility Seismic Detector Device Seismic Detector Processor Signal Interpreter Weapon Bore Cannon Energy Gun Medium Laser Ballistic Gun Light Assault Rifle Ballistic Cannon Bore Cannon Launcher Grenade Launcher Build | -11 -10 -10 -10 ------- Run | Yrd Mat Min Sub Slots Evolved 4 | 4 . . . Power . | . . . . Propulsion 1 | 1 . . . Utility 2 | 2 . . . Weapon 1 | 1 . . . Parts Attached 12 | 7 2 3 . Power 2 | 1 . 1 . Engine 1 | 1 . . . Core 1 | . . 1 . Reactor . | . . . . Propulsion 2 | 2 . . . Treads . | . . . . Leg . | . . . . Wheel 2 | 2 . . . Hover . | . . . . Flight . | . . . . Utility 3 | 2 1 . . Device 2 | 2 . . . Storage . | . . . . Processor 1 | . 1 . . Hackware . | . . . . Protection . | . . . . Artifact . | . . . . Weapon 5 | 2 1 2 . Energy Gun 1 | 1 . . . Energy Cannon . | . . . . Ballistic Gun 1 | 1 . . . Ballistic Cannon 2 | . 1 1 . Launcher 1 | . . 1 . Special Weapon . | . . . . Impact Weapon . | . . . . Slashing Weapon . | . . . . Piercing Weapon . | . . . . Special Melee Weapon . | . . . . Unidentified Prototypes . | . . . . Parts Lost . | . . . . Power . | . . . . Propulsion . | . . . . Utility . | . . . . Weapon . | . . . . Highest Loss Streak . | . . . . To Critical Strikes . | . . . . Average Slot Usage (%) 98 | . 94 100 100 Engine 5 | . 12 . . Core 6 | . . 11 12 Wheel 25 | . 25 25 25 Device 25 | . 25 25 25 Processor 10 | . 7 12 12 Energy Gun 2 | . 7 . . Ballistic Gun 4 | . 12 . . Ballistic Cannon 10 | . 4 14 12 Launcher 5 | . . 8 12 Naked Turns . | . . . . Heaviest Build 24 | 10 11 24 24 Greatest Support 26 | 26 26 26 26 Greatest Overweight (x) . | . . . . Average Overweight (x) . | . . . . Largest Inventory Capacity 1 | . 1 1 1 Average Capacity . | . . 1 1 Most Carried 1 | . 1 1 1 Average Carried . | . . 1 1 Final Capacity 1 | . 1 1 1 Final Carried 1 | . 1 1 1 Class Distribution -------------------- 74% | Hacker-Mutant 25% | Mutant Dominant Class ---------------- Mutant | -10/Materials Hacker-Mutant | -10/Mines Hacker-Mutant | -10/Subcaves Resources | -11 -10 -10 -10 ----------- Run | Yrd Mat Min Sub Matter Collected 609 | 278 124 172 35 Remotely . | . . . . Salvage Created 649 | 139 491 19 . Parts 55 | 8 41 6 . Haulers Intercepted 2 | . 2 . . Recyclers Shooed 2 | 1 1 . . Parts Field Recycled . | . . . . Retrieved Matter . | . . . . Parts Self-Destructed . | . . . . Prevented . | . . . . Kills | -11 -10 -10 -10 ------- Run | Yrd Mat Min Sub Combat Hostiles Destroyed 19 | . 14 5 . Guns 14 | . 14 . . Cannons 5 | . . 5 . Classes Destroyed 8 | 2 5 1 . Builder 2 | . 2 . . Tunneler 2 | 2 . . . Hauler 2 | . 2 . . Recycler 1 | 1 . . . Watcher 2 | . 2 . . Swarmer 12 | . 9 3 . Grunt 5 | . 5 . . Demolisher 1 | . . 1 . Best Kill Streak 7 | 3 7 3 . Combat Bots Only 7 | . 7 3 . Max Kills in Single Turn 1 | 1 1 1 . Gunslinging . | . . . . Exploded . | . . . . Melee . | . . . . Uniques/NPCs Destroyed 1 | . . 1 . YI-UF0 (-10/Mines) Combat | -11 -10 -10 -10 -------- Run | Yrd Mat Min Sub Hostile Shots Fired 93 | . 53 36 4 Missed 14 | . 8 6 . Damage Taken 1100 | . 311 725 64 Core 897 | . 248 591 58 Absorbed by Shields . | . . . . Redirected to Core 649 | . 178 449 22 Ignored by Resistances 310 | . 99 193 18 Core Remaining (%) 100 | 100 . . . Volleys Fired 80 | 8 46 24 2 Largest 2 | 2 2 2 1 Hottest 92 | 70 70 92 57 Shots Fired 152 | 16 91 43 2 Gun 104 | 16 81 7 . Cannon 43 | . 10 31 2 Launcher 5 | . . 5 . Special . | . . . . Kinetic 104 | 8 56 38 2 Thermal 43 | 8 35 . . Explosive 5 | . . 5 . Electromagnetic . | . . . . Robot Hit Streak 17 | 14 17 7 9 Robot Miss Streak 2 | . 1 2 . Penetration Max . | . . . . Secondary Targets 5 | . 5 . . Max Gunslinging Chain 1 | . 1 . . Shots Hit Robots 113 | 14 72 25 2 Core Hits 44 | 5 32 7 . Critical Kills . | . . . . Critical Parts Destroyed 5 | . 1 4 . Critical Strikes 5 | . 1 4 . Destroy 5 | . 1 4 . Melee Attacks . | . . . . Impact . | . . . . Slashing . | . . . . Piercing . | . . . . Sneak Attacks . | . . . . Combat Hostiles . | . . . . Follow-up Attacks . | . . . . Damage Inflicted 1517 | 148 797 537 35 Guns 864 | 148 684 32 . Cannons 573 | . 110 428 35 Explosions 56 | . . 56 . Melee . | . . . . Ramming 24 | . 3 21 . Kinetic 965 | 50 420 460 35 Thermal 472 | 98 374 . . Explosive 56 | . . 56 . Electromagnetic . | . . . . Impact . | . . . . Slashing . | . . . . Piercing . | . . . . Highest Corruption 2 | . 2 2 2 Average Corruption 1 | . 1 2 2 Corruption Purged . | . . . . Corruption Blocked . | . . . . Effects 22 | . 1 20 1 Message Errors 6 | . 1 4 1 Matter Fused 4 | . . 4 . Heat Flow Errors 3 | . . 3 . Energy Discharges 3 | . . 3 . Data Loss (minor) 4 | . . 4 . Misfires 2 | . . 2 . Overload Shots . | . . . . Overflow Damage 13 | . . 13 . Projectiles 13 | . . 13 . Explosions . | . . . . Melee . | . . . . Knockbacks 10 | . 3 6 1 Impact . | . . . . Kinetic 10 | . 3 6 1 Secondary . | . . . . Self-Inflicted Damage 11 | . 1 10 . Shots . | . . . . Rammed 3 | . 1 2 . Targets Rammed 3 | . 1 2 . Kicked . | . . . . Crushed . | . . . . Highest Temperature 225 | 12 18 225 . Average Temperature 22 | 6 6 63 . Received Heat Transfer 105 | . 96 . 9 Siege Activations . | . . . . Robots Corrupted . | . . . . Combat Hostiles . | . . . . Parts Fried . | . . . . Impact Corruptions . | . . . . Robots Melted . | . . . . Combat Hostiles . | . . . . Parts Melted 4 | . 4 . . Heat Transferred 1406 | 296 1110 . . Parts Sabotaged . | . . . . Parts Stolen . | . . . . Parts Stripped . | . . . . Power Chain Reactions . | . . . . Alert | -11 -10 -10 -10 ------- Run | Yrd Mat Min Sub Peak Influence 313 | 15 313 137 . Initial 8 | . 8 6 . Average 72 | 4 129 39 . Maximum Alert Level 1 | . 1 . . Low Security (%) 87 | 100 67 100 . Level 1 12 | . 32 . . Level 2 . | . . . . Level 3 . | . . . . Level 4 . | . . . . Level 5 . | . . . . High Security . | . . . . Max Security . | . . . . Squads Dispatched 3 | . 3 . . Investigation 3 | . 3 . . Extermination . | . . . . Reinforcement . | . . . . Assault . | . . . . Garrison . | . . . . Intercept . | . . . . Searches Triggered . | . . . . Construction Impeded . | . . . . Haulers Reinforced . | . . . . Active Scanning Responses . | . . . . Cargo Convoy Interrupts . | . . . . Stealth | -11 -10 -10 -10 --------- Run | Yrd Mat Min Sub Distress Signals 1 | . 1 . . Communications Jammed . | . . . . Distress Signals . | . . . . Times Spotted 30 | . 19 9 2 Peak Tracking Total 6 | . 6 3 2 Tactical Retreats 1 | . . 1 . Traps | -11 -10 -10 -10 ------- Run | Yrd Mat Min Sub Traps Triggered 2 | . 2 . . Indirectly . | . . . . Trap Hack Attempts . | . . . . Triggered . | . . . . Disarmed . | . . . . Reprogrammed . | . . . . Reused . | . . . . Traps Extracted . | . . . . Installed . | . . . . Triggered . | . . . . Machines | -11 -10 -10 -10 ---------- Run | Yrd Mat Min Sub Machines Disabled 3 | . . 3 . Max in Single Turn 1 | . . 1 . Machines Repaired . | . . . . Machines Dismantled . | . . . . Machines Sabotaged . | . . . . Overloaded Fab Kills . | . . . . Hacking | -11 -10 -10 -10 --------- Run | Yrd Mat Min Sub Machines Accessed 8 | . 8 . . Terminals 8 | . 8 . . Fabricators . | . . . . Repair Stations . | . . . . Recycling Units . | . . . . Scanalyzers . | . . . . Garrison Access . | . . . . Total Hacks 33 | . 33 . . Successful 21 | . 21 . . Failed 12 | . 12 . . Catastrophic 1 | . 1 . . Database Lockouts . | . . . . Manual 28 | . 28 . . Terminals 33 | . 33 . . Fabricators . | . . . . Repair Stations . | . . . . Recycling Units . | . . . . Scanalyzers . | . . . . Garrison Access . | . . . . Terminal Hacks 13 | . 13 . . Branch Access Points 1 | . 1 . . Machine Index 1 | . 1 . . Terminal Index 1 | . 1 . . Alert Level 1 | . 1 . . Unreport Threat 2 | . 2 . . Dispatch Records 1 | . 1 . . Patrol Status 1 | . 1 . . Transport Status 1 | . 1 . . Zone Layout 4 | . 4 . . Fabricator Hacks . | . . . . Repair Station Hacks . | . . . . Recycling Unit Hacks . | . . . . Scanalyzer . | . . . . Garrison Access Hacks . | . . . . Unauthorized Hacks 8 | . 8 . . Terminals 8 | . 8 . . Botnet 8 | . 8 . . Fabricators . | . . . . Repair Stations . | . . . . Recycling Units . | . . . . Scanalyzers . | . . . . Garrison Access . | . . . . Data Cores Recovered . | . . . . Used . | . . . . Hacking Detections 7 | . 7 . . Full Trace Events 4 | . 4 . . Feedback Events . | . . . . Feedback Blocked . | . . . . Robot Schematics Acquired . | . . . . Robots Built . | . . . . Authchips . | . . . . Time . | . . . . Total Robot Build Rating . | . . . . Part Schematics Acquired . | . . . . Parts Built . | . . . . Authchips . | . . . . Time . | . . . . Total Part Build Rating . | . . . . Parts Repaired . | . . . . Time . | . . . . Parts Recycled . | . . . . Recycled Matter . | . . . . Retrieved Matter . | . . . . Retrieved Components . | . . . . Parts Scanalyzed . | . . . . Part Schematics Acquired . | . . . . Parts Damaged . | . . . . Bothacking | -11 -10 -10 -10 ------------ Run | Yrd Mat Min Sub Used RIF Installer . | . . . . Robots Hacked . | . . . . Non-combat . | . . . . Combat . | . . . . Robot Hacks Applied . | . . . . Relay Couplers Released . | . . . . Fabnet Peak Effective % . | . . . . Robots Rewired . | . . . . Allies Hacked . | . . . . Hacks Repelled . | . . . . Allies | -11 -10 -10 -10 -------- Run | Yrd Mat Min Sub Total Allies . | . . . . Largest Group . | . . . . Highest-Rated Group . | . . . . Highest-Rated Ally . | . . . . Total Orders . | . . . . Ally Attacks . | . . . . Total Damage . | . . . . Kills . | . . . . Allies Corrupted . | . . . . Allies Melted . | . . . . Intel | -11 -10 -10 -10 ------- Run | Yrd Mat Min Sub Robot Analysis Total . | . . . . Derelict Logs Recovered 2 | . . 1 1 Drone Launches . | . . . . Drone Recoveries . | . . . . Exploration | -11 -10 -10 -10 ------------- Run | Yrd Mat Min Sub Turns Passed 2047 | 82 729 1111 125 Spaces Moved 1578 | 62 611 771 134 Core 14 | 14 . . . Treads . | . . . . Legs . | . . . . Wheels 1564 | 48 611 771 134 Hover . | . . . . Flight . | . . . . Fastest Speed 50 | 50 90 90 90 Average Speed 89 | 80 90 90 90 Slowest Speed 90 | 90 90 90 90 Overloaded Moves . | . . . . Propulsion Burnouts . | . . . . Robots Hopped . | . . . . Cave-ins Triggered . | . . . . Exploration Rate (%) 51 | 5 90 95 17 Regions Visited 3 Branch Regions 2 Pre-discovered Areas 1 | . . 1 . Known Exits Taken 2 | . 1 1 . Unknown Exits Taken 1 | 1 . . . Scrap Searched 2 | . . 1 1 Spaces Dug . | . . . . Terrain Destroyed 55 | . . 55 . Melee . | . . . . Projectile 16 | . . 16 . AOE 39 | . . 39 . Terrain Rammed . | . . . . Walls Destroyed . | . . . . Machines Disabled . | . . . . Actions | -11 -10 -10 -10 --------- Run | Yrd Mat Min Sub Total 2067 | 76 707 1148 136 Wait 378 | . 33 345 . Move 1575 | 61 610 770 134 Hop . | . . . . Pick Up 1 | . 1 . . Fast Attach 12 | 7 2 3 . Attach . | . . . . Detach . | . . . . Swap . | . . . . Drop 4 | . 1 3 . Fire 80 | 8 46 24 2 Melee . | . . . . Ram 3 | . 1 2 . Kick . | . . . . Crush . | . . . . Escape Stasis . | . . . . Rewire . | . . . . Trap . | . . . . Miscellaneous 14 | . 13 1 . Route ------- -11/Scrapyard -10/Materials (discovered 4 exits: *Mat x2 / *Min x2) -10/Mines (discovered 3 exits: *Mat x2 / *Sub) -10/Subcaves (discovered 1 exit: [Mat]) History --------- Turn | Location | Event 1 | -11/Scrapyard | Upgraded with Propulsion slot (x1) 1 | -11/Scrapyard | Upgraded with Utility slot (x2) 1 | -11/Scrapyard | Upgraded with Weapon slot (x1) 3 | -11/Scrapyard | Discovered new exit (range 15) 83 | -11/Scrapyard | Entered Materials 157 | -10/Materials | Discovered new exit (range 15) 157 | -10/Materials | Identified exit to Mines 242 | -10/Materials | Destroyed 7 combat bots 305 | -10/Materials | Build established: Mutant 489 | -10/Materials | Discovered new exit (range 8) 503 | -10/Materials | Reached level 2 575 | -10/Materials | Identified exit to Materials 646 | -10/Materials | Discovered exit to Materials (range 15) 812 | -10/Materials | Entered Mines 831 | -10/Mines | Build established: Hacker-Mutant 850 | -10/Mines | Assembled infested the area 855 | -10/Mines | Assisted by a Guerilla fighting off Assembled 992 | -10/Mines | Discovered exit to Materials (range 15) 996 | -10/Mines | Discovered exit to Materials (range 16) 1008 | -10/Mines | Learned location of Storage (-9) 1103 | -10/Mines | Learned 2 Materials zone layouts 1120 | -10/Mines | YI-UF0 nonchalantly dropped a Grenade Launcher on the ground 1220 | -10/Mines | Core integrity fell below 50% 1232 | -10/Mines | Core integrity fell below 20% 1234 | -10/Mines | Destroyed YI-UF0 1864 | -10/Mines | Reached level 3 1911 | -10/Mines | Discovered new exit (range 13) 1922 | -10/Mines | Identified exit to Subcaves 1923 | -10/Mines | Entered Subcaves 1960 | -10/Subcaves | Learned Materials trap positions 2047 | -10/Subcaves | Discovered new exit (range 10) 2048 | -10/Subcaves | Destroyed by UN-8ZT(R) with Subdweller Beam Cannon Last Messages --------------- Reached level 3. EXIT=FOUND System corrupted: Component data lost. EXIT=IDENTIFIED: SUBCAVES LOCATION=SUBCAVES AMBIENT_HEAT=-10 GOAL=ESCAPE Acquired derelict log, extracted data. Data stored: Materials trap records. XQ,JISH